fUST/lending_fUST_20250208
["ID","MTS","AMOUNT","RATE_DAILY","PERIOD"]
[352226427,1739009445696,-47019.47,0.00011232,2]
[352226428,1739009445706,-500.0,0.00011232,2]
[352226429,1739009445715,-3974.37,0.00011232,2]
[352226430,1739009445724,-500.0,0.00011232,2]
[352226431,1739009445733,-500.0,0.00011232,2]
[352226432,1739009445742,-2098.99,0.00011232,2]
[352226433,1739009445752,-674.98,0.00011232,2]
[352226434,1739009445761,-2018.79,0.00011232,2]
[352226435,1739009445770,-500.0,0.00011232,2]
[352226436,1739009445779,-500.0,0.00011232,2]
[352226437,1739009445788,-500.0,0.00011232,2]
[352226438,1739009445797,-500.0,0.00011232,2]
[352226439,1739009445806,-500.0,0.00011232,2]
[352226440,1739009445815,-1445.5,0.00011232,2]
[352226441,1739009445825,-1227.56,0.00011232,2]
[352226442,1739009445834,-500.0,0.00011232,2]
[352226443,1739009445843,-500.0,0.00011232,2]
[352226444,1739009445853,-500.0,0.00011232,2]
[352226445,1739009445866,-500.0,0.00011232,2]
[352226446,1739009445875,-500.0,0.00011232,2]
[352226447,1739009445884,-1757.4,0.00011232,2]
[352226448,1739009445894,-500.0,0.00011232,2]
[352226449,1739009445903,-500.0,0.00011232,2]
[352226450,1739009445913,-500.0,0.00011232,2]
[352226451,1739009445923,-16026.97,0.00011232,2]
[352226452,1739009445932,-500.0,0.00011232,2]
[352226453,1739009445942,-500.0,0.00011232,2]
[352226454,1739009445951,-500.0,0.00011232,2]
[352226455,1739009445961,-500.0,0.00011232,2]
[352226456,1739009445971,-1407.63,0.00011232,2]
[352226457,1739009445980,-500.0,0.00011232,2]
[352226458,1739009445990,-500.0,0.00011232,2]
[352226459,1739009445999,-500.0,0.00011232,2]
[352226460,1739009446008,-404.03019968,0.00011232,2]
[352226461,1739009446017,-500.0,0.00011232,2]
[352226462,1739009446026,-500.0,0.00011232,2]
[352226463,1739009446036,-949.5,0.00011232,2]
[352226464,1739009446045,-1906.56,0.00011232,2]
[352226465,1739009446055,-500.0,0.00011232,2]
[352226466,1739009446064,-500.0,0.00011232,2]
[352226467,1739009446074,-529.44,0.00011232,2]
[352226468,1739009446083,-1350.11,0.00011232,2]
[352226469,1739009446093,-2135.38,0.00011232,2]
[352226470,1739009446107,-1630.95,0.00011232,2]
[352226471,1739009446117,-500.0,0.00011232,2]
[352226472,1739009446127,-1365.08,0.00011232,2]
[352226473,1739009446136,-500.0,0.00011232,2]
[352226474,1739009446146,-500.0,0.00011232,2]
[352226475,1739009446155,-500.0,0.00011232,2]
[352226477,1739009446164,-1747.7,0.00011232,2]
[352226478,1739009446174,-500.0,0.00011232,2]
[352226480,1739009446185,-500.0,0.00011232,2]
[352226483,1739009446195,-500.0,0.00011232,2]
[352226485,1739009446205,-4019.37,0.00011232,2]
[352226487,1739009446215,-500.0,0.00011232,2]
[352226488,1739009446225,-1381.87,0.00011232,2]
[352226489,1739009446234,-8764.6,0.00011232,2]
[352226490,1739009446243,-500.0,0.00011232,2]
[352226491,1739009446254,-500.0,0.00011232,2]
[352226493,1739009446263,-500.0,0.00011232,2]
[352226495,1739009446274,-4059.87,0.00011232,2]
[352226496,1739009446283,-1602.63,0.00011232,2]
[352226497,1739009446292,-500.0,0.00011232,2]
[352226498,1739009446302,-657.46,0.00011232,2]
[352226499,1739009446311,-368.67574739,0.00011232,2]
[352226500,1739009446320,-823.09,0.00011232,2]
[352226501,1739009446329,-500.0,0.00011232,2]
[352226502,1739009446339,-500.0,0.00011232,2]
[352226503,1739009446348,-500.0,0.00011232,2]
[352226504,1739009446357,-941.45,0.00011232,2]
[352226505,1739009446367,-500.0,0.00011232,2]
[352226506,1739009446376,-1683.31,0.00011232,2]
[352226507,1739009446386,-630.65,0.00011232,2]
[352226508,1739009446395,-500.0,0.00011232,2]
[352226509,1739009446405,-1922.81,0.00011232,2]
[352226510,1739009446413,-4714.96,0.00011232,2]
[352226511,1739009446423,-500.0,0.00011232,2]
[352226512,1739009446433,-500.0,0.00011232,2]
[352226513,1739009446442,-500.0,0.00011232,2]
[352226514,1739009446452,-500.0,0.00011232,2]
[352226515,1739009446461,-1550.32,0.00011232,2]
[352226516,1739009446471,-875.49,0.00011232,2]
[352226517,1739009446480,-686.62,0.00011232,2]
[352226518,1739009446490,-500.0,0.00011232,2]
[352226519,1739009446499,-500.0,0.00011232,2]
[352226520,1739009446508,-3131.78,0.00011232,2]
[352226521,1739009446517,-500.0,0.00011232,2]
[352226522,1739009446527,-500.0,0.00011232,2]
[352226524,1739009446537,-1206.88,0.00011232,2]
[352226525,1739009446546,-151.0,0.000113,2]
[352226526,1739009446555,-151.0,0.000113,2]
[352226527,1739009446565,-151.0,0.000113,2]
[352226528,1739009446574,-500.0,0.00011354,2]
[352226529,1739009446583,-500.0,0.00011354,2]
[352226530,1739009446592,-502.63900238,0.00011354,2]
[352226531,1739009446602,-500.0,0.00011354,2]
[352226532,1739009446611,-500.0,0.00011356,2]
[352226533,1739009446621,-500.0,0.00011356,2]
[352226534,1739009446630,-500.0,0.00011368,2]
[352226535,1739009446639,-500.0,0.00011368,2]
[352226536,1739009446648,-500.0,0.00011368,2]
[352226537,1739009446657,-500.0,0.00011369,2]
[352226538,1739009446667,-500.0,0.00011369,2]
[352226539,1739009446676,-500.0,0.00011369,2]
[352226540,1739009446685,-500.0,0.00011369,2]
[352226541,1739009446695,-500.0,0.00011369,2]
[352226542,1739009446704,-500.0,0.00011369,2]
[352226543,1739009446713,-185.95499664,0.00011369,2]
[352226544,1739009446722,-500.0,0.00011369,2]
[352226545,1739009446731,-500.0,0.00011369,2]
[352226546,1739009446741,-500.0,0.00011369,2]
[352226547,1739009446750,-713.97,0.00011369,2]
[352226548,1739009446760,-513.93161765,0.00011369,2]
[352226549,1739009446769,-632.42,0.00011369,2]
[352226550,1739009446778,-500.0,0.00011369,2]
[352226551,1739009446788,-500.0,0.00011369,2]
[352226552,1739009446797,-500.0,0.00011369,2]
[352226553,1739009446806,-869.64,0.00011369,2]
[352226554,1739009446816,-500.0,0.00011369,2]
[352226555,1739009446825,-500.0,0.00011369,2]
[352226556,1739009446834,-500.0,0.00011369,2]
[352226557,1739009446842,-500.0,0.00011369,2]
[352226558,1739009446851,-500.0,0.00011369,2]
[352226559,1739009446860,-500.0,0.00011369,2]
[352226560,1739009446870,-500.0,0.00011369,2]
[352226561,1739009446879,-852.32,0.00011369,2]
[352226562,1739009446888,-500.0,0.00011369,2]
[352226563,1739009446898,-500.0,0.00011369,2]
[352226564,1739009446907,-500.0,0.00011369,2]
[352226565,1739009446917,-537.69,0.00011369,2]
[352226566,1739009446926,-399.22245439,0.00011369,2]
[352226568,1739009446937,-500.0,0.00011369,2]
[352226569,1739009446947,-499.55,0.00011369,2]
[352226570,1739009446957,-500.0,0.00011369,2]
[352226572,1739009446967,-610.86,0.00011369,2]
[352226574,1739009446976,-500.0,0.00011369,2]
[352226576,1739009446985,-500.0,0.00011369,2]
[352226578,1739009446994,-500.0,0.00011369,2]
[352226580,1739009447004,-774.05,0.00011369,2]
[352226582,1739009447013,-500.0,0.00011369,2]
[352226584,1739009447022,-500.0,0.00011369,2]
[352226586,1739009447031,-500.0,0.00011369,2]
[352226588,1739009447040,-719.76,0.00011369,2]
[352226590,1739009447050,-500.0,0.00011369,2]
[352226592,1739009447059,-500.0,0.00011369,2]
[352226594,1739009447068,-500.0,0.00011369,2]
[352226596,1739009447078,-365.73,0.00011369,2]
[352226598,1739009447087,-500.0,0.00011369,2]
[352226600,1739009447098,-500.0,0.00011369,2]
[352226602,1739009447109,-500.0,0.00011369,2]
[352226604,1739009447119,-500.0,0.00011369,2]
[352226606,1739009447128,-500.0,0.00011369,2]
[352226608,1739009447139,-1090.02,0.00011369,2]
[352226610,1739009447148,-500.0,0.00011369,2]
[352226612,1739009447158,-500.0,0.00011369,2]
[352226614,1739009447167,-500.0,0.00011369,2]
[352226616,1739009447176,-500.0,0.00011369,2]
[352226618,1739009447187,-1436.01,0.00011369,2]
[352226620,1739009447196,-500.0,0.00011369,2]
[352226622,1739009447207,-500.0,0.00011369,2]
[352226623,1739009447216,-1466.47,0.00011369,2]
[352226626,1739009447226,-500.0,0.00011369,2]
[352226628,1739009447236,-500.0,0.00011369,2]
[352226630,1739009447245,-500.0,0.00011369,2]
[352226632,1739009447254,-599.69,0.00011369,2]
[352226634,1739009447263,-500.0,0.00011369,2]
[352226636,1739009447273,-515.34,0.00011369,2]
[352226638,1739009447282,-500.0,0.00011369,2]
[352226639,1739009447291,-500.0,0.00011369,2]
[352226641,1739009447301,-500.0,0.00011369,2]
[352226643,1739009447310,-500.0,0.00011369,2]
[352226646,1739009447319,-500.0,0.00011369,2]
[352226647,1739009447329,-500.0,0.00011369,2]
[352226649,1739009447338,-500.0,0.00011369,2]
[352226652,1739009447347,-500.0,0.00011369,2]
[352226654,1739009447357,-500.0,0.00011369,2]
[352226656,1739009447366,-438.53863776,0.00011369,2]
[352226658,1739009447375,-500.0,0.00011369,2]
[352226660,1739009447384,-500.0,0.00011369,2]
[352226662,1739009447393,-500.0,0.00011369,2]
[352226664,1739009447402,-1135.68,0.00011369,2]
[352226666,1739009447411,-1616.62,0.00011369,2]
[352226668,1739009447421,-500.0,0.00011369,2]
[352226670,1739009447430,-500.0,0.00011369,2]
[352226671,1739009447440,-17848.75,0.00011369,2]
[352226672,1739009447449,-500.0,0.00011369,2]
[352226673,1739009447460,-1150.84,0.00011369,2]
[352226674,1739009447470,-3466.13,0.00011369,2]
[352226675,1739009447480,-500.0,0.00011369,2]
[352226676,1739009447490,-846.96,0.00011369,2]
[352226677,1739009447499,-780.26,0.00011369,2]
[352226678,1739009447508,-500.0,0.00011369,2]
[352226679,1739009447517,-500.0,0.00011369,2]
[352226680,1739009447527,-3788.56,0.00011369,2]
[352226681,1739009447536,-500.0,0.00011369,2]
[352226682,1739009447546,-1794.57,0.00011369,2]
[352226683,1739009447556,-518.1928402,0.00011369,2]
[352226684,1739009447565,-746.18,0.00011369,2]
[352226685,1739009447574,-500.0,0.00011369,2]
[352226686,1739009447584,-637.54,0.00011369,2]
[352226687,1739009447593,-766.04,0.00011369,2]
[352226688,1739009447602,-500.0,0.00011369,2]
[352226689,1739009447612,-1249.76,0.00011369,2]
[352226690,1739009447621,-500.0,0.00011369,2]
[352226691,1739009447631,-1207.57,0.00011369,2]
[352226692,1739009447641,-5435.25,0.00011369,2]
[352226693,1739009447650,-500.0,0.00011369,2]
[352226694,1739009447659,-500.0,0.00011369,2]
[352226695,1739009447668,-500.0,0.00011369,2]
[352226696,1739009447677,-500.0,0.00011369,2]
[352226697,1739009447687,-500.0,0.00011369,2]
[352226698,1739009447697,-500.0,0.00011369,2]
[352226699,1739009447708,-500.0,0.00011369,2]
[352226700,1739009447717,-1411.95,0.00011369,2]
[352226701,1739009447727,-500.0,0.00011369,2]
[352226702,1739009447736,-47019.47,0.00011369,2]
[352226703,1739009447745,-3974.37,0.00011369,2]
[352226704,1739009447755,-500.0,0.00011369,2]
[352226705,1739009447765,-500.0,0.00011369,2]
[352226706,1739009447775,-2098.99,0.00011369,2]
[352226707,1739009447784,-674.98,0.00011369,2]
[352226708,1739009447793,-2018.79,0.00011369,2]
[352226709,1739009447803,-500.0,0.00011369,2]
[352226710,1739009447812,-500.0,0.00011369,2]
[352226711,1739009447822,-500.0,0.00011369,2]
[352226712,1739009447832,-500.0,0.00011369,2]
[352226713,1739009447842,-500.0,0.00011369,2]
[352226714,1739009447851,-1445.5,0.00011369,2]
[352226715,1739009447861,-1227.56,0.00011369,2]
[352226716,1739009447871,-500.0,0.00011369,2]
[352226717,1739009447880,-500.0,0.00011369,2]
[352226718,1739009447891,-500.0,0.00011369,2]
[352226719,1739009447901,-500.0,0.00011369,2]
[352226720,1739009447911,-500.0,0.00011369,2]
[352226721,1739009447921,-1757.4,0.00011369,2]
[352226723,1739009447931,-500.0,0.00011369,2]
[352226724,1739009447940,-500.0,0.00011369,2]
[352226726,1739009447949,-500.0,0.00011369,2]
[352226728,1739009447959,-16026.97,0.00011369,2]
[352226729,1739009447968,-500.0,0.00011369,2]
[352226730,1739009447977,-500.0,0.00011369,2]
[352226731,1739009448130,-500.0,0.00011369,2]
[352226732,1739009448140,-500.0,0.00011369,2]
[352226733,1739009448151,-1407.63,0.00011369,2]
[352226734,1739009448160,-500.0,0.00011369,2]
[352226735,1739009448170,-500.0,0.00011369,2]
[352226736,1739009448180,-500.0,0.00011369,2]
[352226737,1739009448190,-500.0,0.00011369,2]
[352226738,1739009448200,-500.0,0.00011369,2]
[352226739,1739009448211,-949.5,0.00011369,2]
[352226740,1739009448221,-1906.56,0.00011369,2]
[352226741,1739009448231,-500.0,0.00011369,2]
[352226742,1739009448241,-500.0,0.00011369,2]
[352226743,1739009448251,-529.44,0.00011369,2]
[352226744,1739009448261,-1350.11,0.00011369,2]
[352226745,1739009448272,-2135.38,0.00011369,2]
[352226746,1739009448282,-1630.95,0.00011369,2]
[352226747,1739009448291,-500.0,0.00011369,2]
[352226748,1739009448301,-1365.08,0.00011369,2]
[352226749,1739009448311,-500.0,0.00011369,2]
[352226750,1739009448321,-500.0,0.00011369,2]
[352226751,1739009448331,-1747.7,0.00011369,2]
[352226752,1739009448341,-500.0,0.00011369,2]
[352226753,1739009448350,-500.0,0.00011369,2]
[352226754,1739009448360,-4019.37,0.00011369,2]
[352226755,1739009448369,-500.0,0.00011369,2]
[352226756,1739009448379,-1381.87,0.00011369,2]
[352226757,1739009448389,-8764.6,0.00011369,2]
[352226758,1739009448400,-500.0,0.00011369,2]
[352226759,1739009448410,-500.0,0.00011369,2]
[352226760,1739009448421,-500.0,0.00011369,2]
[352226761,1739009448431,-4059.87,0.00011369,2]
[352226762,1739009448441,-1602.63,0.00011369,2]
[352226763,1739009448451,-638.39880981,0.00011369,2]
[352226764,1739009448463,-657.46,0.00011369,2]
[352226765,1739009448473,-823.09,0.00011369,2]
[352226766,1739009448482,-500.0,0.00011369,2]
[352226767,1739009448492,-500.0,0.00011369,2]
[352226768,1739009448502,-941.45,0.00011369,2]
[352226769,1739009448513,-500.0,0.00011369,2]
[352226770,1739009448522,-1683.31,0.00011369,2]
[352226771,1739009448532,-630.65,0.00011369,2]
[352226772,1739009448543,-500.0,0.00011369,2]
[352226773,1739009448554,-1922.81,0.00011369,2]
[352226774,1739009448564,-4714.96,0.00011369,2]
[352226775,1739009448575,-500.0,0.00011369,2]
[352226776,1739009448585,-500.0,0.00011369,2]
[352226777,1739009448596,-500.0,0.00011369,2]
[352226778,1739009448607,-500.0,0.00011369,2]
[352226779,1739009448617,-1550.32,0.00011369,2]
[352226780,1739009448627,-875.49,0.00011369,2]
[352226781,1739009448637,-686.62,0.00011369,2]
[352226782,1739009448647,-596.08398438,0.00011369,2]
[352226783,1739009448657,-500.0,0.00011369,2]
[352226784,1739009448668,-3131.78,0.00011369,2]
[352226785,1739009448678,-500.0,0.00011369,2]
[352226786,1739009448687,-500.0,0.00011369,2]
[352226787,1739009448697,-1206.88,0.00011369,2]
[352226788,1739009448708,-13265.39216455,0.00011371,2]
[352226789,1739009448719,-585.45216601,0.00011377,2]
[352226790,1739009448729,-500.0,0.00011377,2]
[352226791,1739009448741,-354.5171504,0.000114,2]
[352226792,1739009448751,-4365.48217213,0.00011406,2]
[352226793,1739009448762,-151.0,0.000115,2]
[352226794,1739009448772,-354.7727591,0.000115,2]
[352226795,1739009448783,-272.234927,0.00011506,2]
[352226796,1739009448793,-272.234927,0.00011506,2]
[352226797,1739009448803,-151.0,0.00011506,2]
[352226798,1739009448812,-500.0,0.00011506,2]
[352226799,1739009448822,-500.0,0.00011506,2]
[352226800,1739009448833,-500.0,0.00011506,2]
[352226801,1739009448843,-500.0,0.00011506,2]
[352226802,1739009448853,-500.0,0.00011506,2]
[352226803,1739009448864,-500.0,0.00011506,2]
[352226804,1739009448874,-493.433332,0.00011506,2]
[352226805,1739009448884,-493.433332,0.00011506,2]
[352226806,1739009448894,-500.0,0.00011506,2]
[352226807,1739009448905,-500.0,0.00011506,2]
[352226808,1739009448914,-713.97,0.00011506,2]
[352226809,1739009448924,-632.42,0.00011506,2]
[352226810,1739009448934,-500.0,0.00011506,2]
[352226811,1739009448944,-500.0,0.00011506,2]
[352226812,1739009448954,-500.0,0.00011506,2]
[352226813,1739009448964,-869.64,0.00011506,2]
[352226814,1739009448975,-500.0,0.00011506,2]
[352226815,1739009448985,-500.0,0.00011506,2]
[352226816,1739009448995,-500.0,0.00011506,2]
[352226817,1739009449005,-500.0,0.00011506,2]
[352226818,1739009449015,-500.0,0.00011506,2]
[352226819,1739009449026,-500.0,0.00011506,2]
[352226820,1739009449036,-500.0,0.00011506,2]
[352226821,1739009449046,-852.32,0.00011506,2]
[352226822,1739009449055,-500.0,0.00011506,2]
[352226823,1739009449066,-500.0,0.00011506,2]
[352226824,1739009449076,-537.69,0.00011506,2]
[352226825,1739009449086,-500.0,0.00011506,2]
[352226826,1739009449100,-500.0,0.00011506,2]
[352226827,1739009449113,-610.86,0.00011506,2]
[352226828,1739009449123,-500.0,0.00011506,2]
[352226829,1739009449133,-500.0,0.00011506,2]
[352226830,1739009449143,-500.0,0.00011506,2]
[352226831,1739009449154,-774.05,0.00011506,2]
[352226832,1739009449164,-500.0,0.00011506,2]
[352226833,1739009449174,-500.0,0.00011506,2]
[352226834,1739009449184,-500.0,0.00011506,2]
[352226835,1739009449194,-719.76,0.00011506,2]
[352226836,1739009449205,-500.0,0.00011506,2]
[352226837,1739009449215,-500.0,0.00011506,2]
[352226838,1739009449225,-500.0,0.00011506,2]
[352226839,1739009449237,-500.0,0.00011506,2]
[352226840,1739009449247,-500.0,0.00011506,2]
[352226841,1739009449258,-500.0,0.00011506,2]
[352226842,1739009449268,-500.0,0.00011506,2]
[352226843,1739009449278,-1090.02,0.00011506,2]
[352226844,1739009449287,-500.0,0.00011506,2]
[352226845,1739009449296,-500.0,0.00011506,2]
[352226846,1739009449305,-500.0,0.00011506,2]
[352226847,1739009449315,-500.0,0.00011506,2]
[352226848,1739009449326,-1436.01,0.00011506,2]
[352226849,1739009449336,-500.0,0.00011506,2]
[352226850,1739009449348,-500.0,0.00011506,2]
[352226851,1739009449358,-1466.47,0.00011506,2]
[352226852,1739009449367,-500.0,0.00011506,2]
[352226853,1739009449377,-599.69,0.00011506,2]
[352226854,1739009449387,-500.0,0.00011506,2]
[352226855,1739009449396,-500.0,0.00011506,2]
[352226856,1739009449407,-500.0,0.00011506,2]
[352226857,1739009449417,-500.0,0.00011506,2]
[352226858,1739009449427,-575.61,0.00011506,2]
[352226859,1739009449437,-500.0,0.00011506,2]
[352226860,1739009449447,-500.0,0.00011506,2]
[352226861,1739009449458,-500.0,0.00011506,2]
[352226862,1739009449469,-500.0,0.00011506,2]
[352226863,1739009449479,-500.0,0.00011506,2]
[352226864,1739009449490,-500.0,0.00011506,2]
[352226865,1739009449500,-500.0,0.00011506,2]
[352226866,1739009449510,-236.93711305,0.00011506,2]
[352226867,1739009449520,-1135.68,0.00011506,2]
[352226868,1739009449530,-1616.62,0.00011506,2]
[352226869,1739009449540,-500.0,0.00011506,2]
[352226870,1739009449551,-500.0,0.00011506,2]
[352226871,1739009449562,-17848.75,0.00011506,2]
[352226872,1739009449572,-500.0,0.00011506,2]
[352226873,1739009449582,-1150.84,0.00011506,2]
[352226874,1739009449592,-3466.13,0.00011506,2]
[352226875,1739009449601,-500.0,0.00011506,2]
[352226876,1739009449611,-846.96,0.00011506,2]
[352226877,1739009449621,-780.26,0.00011506,2]
[352226878,1739009449632,-500.0,0.00011506,2]
[352226879,1739009449641,-500.0,0.00011506,2]
[352226880,1739009449652,-3788.56,0.00011506,2]
[352226881,1739009449663,-500.0,0.00011506,2]
[352226882,1739009449673,-1794.57,0.00011506,2]
[352226883,1739009449684,-746.18,0.00011506,2]
[352226884,1739009449694,-500.0,0.00011506,2]
[352226885,1739009449706,-637.54,0.00011506,2]
[352226886,1739009449715,-766.04,0.00011506,2]
[352226887,1739009449725,-500.0,0.00011506,2]
[352226888,1739009449733,-1249.76,0.00011506,2]
[352226889,1739009449742,-500.0,0.00011506,2]
[352226890,1739009449752,-1207.57,0.00011506,2]
[352226891,1739009449761,-5435.25,0.00011506,2]
[352226892,1739009449771,-500.0,0.00011506,2]
[352226893,1739009449780,-500.0,0.00011506,2]
[352226894,1739009449789,-500.0,0.00011506,2]
[352226895,1739009449799,-500.0,0.00011506,2]
[352226896,1739009449808,-500.0,0.00011506,2]
[352226897,1739009449818,-500.0,0.00011506,2]
[352226898,1739009449826,-500.0,0.00011506,2]
[352226899,1739009449836,-1411.95,0.00011506,2]
[352226900,1739009449845,-500.0,0.00011506,2]
[352226901,1739009449855,-47019.47,0.00011506,2]
[352226902,1739009449864,-3974.37,0.00011506,2]
[352226903,1739009449874,-500.0,0.00011506,2]
[352226904,1739009449883,-500.0,0.00011506,2]
[352226905,1739009449892,-2098.99,0.00011506,2]
[352226906,1739009449902,-674.98,0.00011506,2]
[352226907,1739009449912,-2018.79,0.00011506,2]
[352226908,1739009449922,-500.0,0.00011506,2]
[352226909,1739009449931,-500.0,0.00011506,2]
[352226910,1739009449941,-500.0,0.00011506,2]
[352226911,1739009449951,-500.0,0.00011506,2]
[352226912,1739009449961,-500.0,0.00011506,2]
[352226913,1739009449970,-1445.5,0.00011506,2]
[352226914,1739009449979,-1227.56,0.00011506,2]
[352226915,1739009449988,-500.0,0.00011506,2]
[352226916,1739009449997,-500.0,0.00011506,2]
[352226917,1739009450005,-500.0,0.00011506,2]
[352226918,1739009450015,-500.0,0.00011506,2]
[352226919,1739009450024,-1757.4,0.00011506,2]
[352226920,1739009450033,-500.0,0.00011506,2]
[352226921,1739009450042,-500.0,0.00011506,2]
[352226922,1739009450052,-500.0,0.00011506,2]
[352226923,1739009450062,-16026.97,0.00011506,2]
[352226924,1739009450071,-500.0,0.00011506,2]
[352226925,1739009450079,-500.0,0.00011506,2]
[352226926,1739009450089,-500.0,0.00011506,2]
[352226927,1739009450103,-500.0,0.00011506,2]
[352226928,1739009450112,-1407.63,0.00011506,2]
[352226929,1739009450121,-500.0,0.00011506,2]
[352226930,1739009450130,-500.0,0.00011506,2]
[352226931,1739009450139,-500.0,0.00011506,2]
[352226932,1739009450149,-500.0,0.00011506,2]
[352226933,1739009450158,-500.0,0.00011506,2]
[352226934,1739009450167,-949.5,0.00011506,2]
[352226935,1739009450177,-1906.56,0.00011506,2]
[352226936,1739009450186,-500.0,0.00011506,2]
[352226937,1739009450195,-529.44,0.00011506,2]
[352226938,1739009450204,-1350.11,0.00011506,2]
[352226939,1739009450213,-2135.38,0.00011506,2]
[352226940,1739009450223,-1630.95,0.00011506,2]
[352226941,1739009450232,-500.0,0.00011506,2]
[352226942,1739009450241,-1365.08,0.00011506,2]
[352226943,1739009450251,-500.0,0.00011506,2]
[352226944,1739009450260,-500.0,0.00011506,2]
[352226945,1739009450269,-1747.7,0.00011506,2]
[352226946,1739009450279,-500.0,0.00011506,2]
[352226947,1739009450288,-500.0,0.00011506,2]
[352226948,1739009450296,-4019.37,0.00011506,2]
[352226949,1739009450305,-500.0,0.00011506,2]
[352226950,1739009450314,-1381.87,0.00011506,2]
[352226951,1739009450323,-8764.6,0.00011506,2]
[352226952,1739009450332,-500.0,0.00011506,2]
[352226953,1739009450341,-500.0,0.00011506,2]
[352226954,1739009450351,-500.0,0.00011506,2]
[352226955,1739009450360,-4059.87,0.00011506,2]
[352226956,1739009450369,-1602.63,0.00011506,2]
[352226957,1739009450378,-657.46,0.00011506,2]
[352226958,1739009450387,-823.09,0.00011506,2]
[352226959,1739009450396,-500.0,0.00011506,2]
[352226960,1739009450405,-941.45,0.00011506,2]
[352226961,1739009450415,-227.60640928,0.00011506,2]
[352226962,1739009450424,-1683.31,0.00011506,2]
[352226963,1739009450433,-245.63,0.00011506,2]
[352226964,1739009450442,-630.65,0.00011506,2]
[352226965,1739009450451,-500.0,0.00011506,2]
[352226966,1739009450461,-1922.81,0.00011506,2]
[352226967,1739009450470,-4714.96,0.00011506,2]
[352226968,1739009450479,-500.0,0.00011506,2]
[352226969,1739009450488,-500.0,0.00011506,2]
[352226970,1739009450497,-500.0,0.00011506,2]
[352226971,1739009450507,-500.0,0.00011506,2]
[352226972,1739009450516,-1550.32,0.00011506,2]
[352226973,1739009450526,-875.49,0.00011506,2]
[352226974,1739009450535,-686.62,0.00011506,2]
[352226975,1739009450544,-500.0,0.00011506,2]
[352226976,1739009450553,-3131.78,0.00011506,2]
[352226977,1739009450562,-500.0,0.00011506,2]
[352226978,1739009450571,-500.0,0.00011506,2]
[352226979,1739009450580,-1206.88,0.00011506,2]
[352226980,1739009450590,-531.153,0.00011542,2]
[352226981,1739009450599,-500.0,0.00011545,2]
[352226982,1739009450608,-18967.78117009,0.000116,2]
[352226983,1739009450617,-7171.49,0.000116,2]
[352226984,1739009450626,-151.0,0.000116,2]
[352226985,1739009450635,-305.74029623,0.00011631,2]
[352226986,1739009450644,-493.433332,0.00011642,2]
[352226987,1739009450653,-493.433332,0.00011642,2]
[352226988,1739009450662,-151.0,0.00011643,2]
[352226989,1739009450671,-217.675166,0.00011643,2]